fUST/lending_fUST_20250827
["ID","MTS","AMOUNT","RATE_DAILY","PERIOD"]
[381641880,1756300277280,-2486.85,0.00023561,2]
[381641881,1756300277289,-480.0,0.00023561,2]
[381641882,1756300277298,-480.0,0.00023561,2]
[381641883,1756300277307,-480.0,0.00023561,2]
[381641884,1756300277317,-480.0,0.00023561,2]
[381641885,1756300277326,-768.18,0.00023561,2]
[381641886,1756300277336,-7496.55,0.00023561,2]
[381641887,1756300277349,-480.0,0.00023561,2]
[381641888,1756300277359,-820.29,0.00023561,2]
[381641889,1756300277367,-487.65,0.00023561,2]
[381641890,1756300277377,-480.0,0.00023561,2]
[381641891,1756300277387,-480.0,0.00023561,2]
[381641892,1756300277397,-480.0,0.00023561,2]
[381641893,1756300277407,-1126.02,0.00023561,2]
[381641894,1756300277417,-480.0,0.00023561,2]
[381641895,1756300277427,-1019.66,0.00023561,2]
[381641896,1756300277437,-480.0,0.00023561,2]
[381641897,1756300277447,-480.0,0.00023561,2]
[381641898,1756300277457,-4097.76,0.00023561,2]
[381641899,1756300277467,-1538.8,0.00023561,2]
[381641900,1756300277476,-480.0,0.00023561,2]
[381641901,1756300277485,-553.39,0.00023561,2]
[381641902,1756300277495,-480.0,0.00023561,2]
[381641903,1756300277506,-188.0,0.00023561,7]
[381641904,1756300277515,-563.16,0.00023561,2]
[381641905,1756300277525,-480.0,0.00023561,2]
[381641906,1756300277536,-866.73,0.00023561,2]
[381641907,1756300277545,-532.37,0.00023561,2]
[381641908,1756300277555,-480.0,0.00023561,2]
[381641909,1756300277565,-1089.92,0.00023561,2]
[381641910,1756300277575,-480.0,0.00023561,2]
[381641911,1756300277585,-480.0,0.00023561,2]
[381641912,1756300277596,-480.0,0.00023561,2]
[381641913,1756300277605,-619.83,0.00023561,2]
[381641914,1756300277615,-480.0,0.00023561,2]
[381641915,1756300277624,-480.0,0.00023561,2]
[381641916,1756300277634,-480.0,0.00023561,2]
[381641917,1756300277643,-1480.58,0.00023561,2]
[381641918,1756300277654,-480.0,0.00023561,2]
[381641919,1756300277664,-1080.29,0.00023561,2]
[381641920,1756300277673,-2783.48,0.00023561,2]
[381641921,1756300277683,-849.03,0.00023561,2]
[381641922,1756300277693,-3788.9,0.00023561,2]
[381641923,1756300277703,-1045.46,0.00023561,2]
[381641924,1756300277713,-527.62,0.00023561,2]
[381641925,1756300277722,-480.0,0.00023561,2]
[381641926,1756300277731,-480.0,0.00023561,2]
[381641927,1756300277741,-1135.21,0.00023561,2]
[381641928,1756300277750,-1489.59,0.00023561,2]
[381641929,1756300277760,-480.0,0.00023561,2]
[381641930,1756300277770,-480.0,0.00023561,2]
[381641931,1756300277780,-480.0,0.00023561,2]
[381641932,1756300277789,-1171.32,0.00023561,2]
[381641933,1756300277799,-506.58,0.00023561,2]
[381641934,1756300277808,-1373.52,0.00023561,2]
[381641935,1756300277818,-885.58,0.00023561,2]
[381641936,1756300277827,-521.66,0.00023561,2]
[381641937,1756300277836,-994.97,0.00023561,2]
[381641938,1756300277846,-2291.1,0.00023561,2]
[381641939,1756300277856,-480.0,0.00023561,2]
[381641940,1756300277865,-836.96,0.00023561,2]
[381641941,1756300277875,-480.0,0.00023561,2]
[381641942,1756300277884,-4941.28,0.00023561,2]
[381641943,1756300277894,-805.85,0.00023561,2]
[381641944,1756300277903,-480.0,0.00023561,2]
[381641945,1756300277913,-480.0,0.00023561,2]
[381641946,1756300277923,-480.0,0.00023561,2]
[381641947,1756300277934,-509.64,0.00023561,2]
[381641948,1756300277943,-584.58,0.00023561,2]
[381641949,1756300277953,-826.49,0.00023561,2]
[381641950,1756300277962,-480.0,0.00023561,2]
[381641951,1756300277971,-480.0,0.00023561,2]
[381641952,1756300277981,-295.302236,0.00023561,7]
[381641953,1756300277991,-480.0,0.00023561,2]
[381641954,1756300278001,-826.37,0.00023561,2]
[381641955,1756300278011,-642.66,0.00023561,2]
[381641956,1756300278020,-647.14,0.00023561,2]
[381641957,1756300278030,-495.41,0.00023561,2]
[381641958,1756300278040,-480.0,0.00023561,2]
[381641959,1756300278049,-480.0,0.00023561,2]
[381641960,1756300278059,-480.0,0.00023561,2]
[381641961,1756300278069,-713.97,0.00023561,2]
[381641962,1756300278078,-706.08,0.00023561,2]
[381641963,1756300278087,-684.55,0.00023561,2]
[381641964,1756300278096,-1220.94,0.00023561,2]
[381641965,1756300278106,-562.5,0.00023561,2]
[381641966,1756300278116,-480.0,0.00023561,2]
[381641967,1756300278125,-480.0,0.00023561,2]
[381641968,1756300278135,-480.0,0.00023561,2]
[381641969,1756300278145,-480.0,0.00023561,2]
[381641970,1756300278155,-480.0,0.00023561,2]
[381641971,1756300278164,-11202.36,0.000236,2]
[381641972,1756300278173,-159.0,0.000236,4]
[381641973,1756300278184,-159.0,0.000236,4]
[381641974,1756300278193,-159.0,0.000236,4]
[381641975,1756300278203,-2000.0,0.00023616,2]
[381641976,1756300278213,-450.0,0.00023616,2]
[381641977,1756300278223,-150.344,0.00023736,2]
[381641978,1756300278232,-150.637,0.00023736,2]
[381641979,1756300278241,-974.0,0.0002374,2]
[381641980,1756300278251,-2157.0,0.0002374,2]
[381641981,1756300278260,-638.0,0.0002374,2]
[381641982,1756300278270,-209.40437684,0.00023756,2]
[381641983,1756300278280,-195.869,0.00023764,2]
[381641984,1756300278289,-430.154,0.00023781,2]
[381641985,1756300278299,-1001.49178648,0.00023783,2]
[381641986,1756300278310,-480.0,0.00023835,2]
[381641987,1756300278319,-484.65,0.00023835,2]
[381641988,1756300278329,-602.96,0.00023835,2]
[381641989,1756300278339,-480.0,0.00023835,2]
[381641990,1756300278350,-480.0,0.00023835,2]
[381641991,1756300278360,-602.45,0.00023835,2]
[381641992,1756300278369,-480.0,0.00023835,2]
[381641993,1756300278379,-151.0,0.00023835,7]
[381641994,1756300278390,-480.0,0.00023835,2]
[381641995,1756300278400,-480.0,0.00023835,2]
[381641996,1756300278409,-480.0,0.00023835,2]
[381641997,1756300278420,-480.0,0.00023835,2]
[381641998,1756300278429,-480.0,0.00023835,2]
[381641999,1756300278439,-480.0,0.00023835,2]
[381642000,1756300278448,-517.62,0.00023835,2]
[381642001,1756300278458,-480.0,0.00023835,2]
[381642002,1756300278468,-480.0,0.00023835,2]
[381642003,1756300278477,-480.0,0.00023835,2]
[381642004,1756300278487,-480.0,0.00023835,2]
[381642005,1756300278497,-480.0,0.00023835,2]
[381642006,1756300278507,-480.0,0.00023835,2]
[381642007,1756300278517,-863.12,0.00023835,2]
[381642008,1756300278527,-480.0,0.00023835,2]
[381642009,1756300278537,-602.59,0.00023835,2]
[381642010,1756300278547,-480.0,0.00023835,2]
[381642011,1756300278557,-480.0,0.00023835,2]
[381642012,1756300278567,-480.0,0.00023835,2]
[381642013,1756300278577,-710.45,0.00023835,2]
[381642014,1756300278587,-480.0,0.00023835,2]
[381642015,1756300278597,-480.0,0.00023835,2]
[381642016,1756300278607,-480.0,0.00023835,2]
[381642017,1756300278616,-480.0,0.00023835,2]
[381642018,1756300278627,-480.0,0.00023835,2]
[381642019,1756300278636,-480.0,0.00023835,2]
[381642020,1756300278646,-480.0,0.00023835,2]
[381642021,1756300278656,-740.24,0.00023835,2]
[381642022,1756300278666,-480.0,0.00023835,2]
[381642023,1756300278676,-549.84,0.00023835,2]
[381642024,1756300278686,-480.0,0.00023835,2]
[381642025,1756300278695,-480.0,0.00023835,2]
[381642026,1756300278706,-480.0,0.00023835,2]
[381642027,1756300278716,-480.0,0.00023835,2]
[381642028,1756300278726,-480.0,0.00023835,2]
[381642029,1756300278736,-480.0,0.00023835,2]
[381642030,1756300278746,-480.0,0.00023835,2]
[381642031,1756300278755,-1190.92,0.00023835,2]
[381642032,1756300278765,-480.0,0.00023835,2]
[381642033,1756300278775,-480.0,0.00023835,2]
[381642034,1756300278785,-653.11,0.00023835,2]
[381642035,1756300278795,-480.0,0.00023835,2]
[381642036,1756300278805,-701.02,0.00023835,2]
[381642037,1756300278815,-480.0,0.00023835,2]
[381642038,1756300278825,-198.79190786,0.00023835,2]
[381642039,1756300278835,-480.0,0.00023835,2]
[381642040,1756300278845,-480.0,0.00023835,2]
[381642041,1756300278855,-561.6,0.00023835,2]
[381642042,1756300278865,-480.0,0.00023835,2]
[381642043,1756300278875,-536.08,0.00023835,2]
[381642044,1756300278885,-785.56,0.00023835,2]
[381642045,1756300278896,-707.7,0.00023835,2]
[381642046,1756300278906,-480.0,0.00023835,2]
[381642047,1756300278916,-480.0,0.00023835,2]
[381642048,1756300278925,-480.0,0.00023835,2]
[381642049,1756300278936,-848.07,0.00023835,2]
[381642050,1756300278945,-480.0,0.00023835,2]
[381642051,1756300278955,-480.0,0.00023835,2]
[381642052,1756300278965,-480.0,0.00023835,2]
[381642053,1756300278975,-480.0,0.00023835,2]
[381642054,1756300278984,-480.0,0.00023835,2]
[381642055,1756300278994,-480.0,0.00023835,2]
[381642056,1756300279004,-480.0,0.00023835,2]
[381642057,1756300279014,-480.0,0.00023835,2]
[381642058,1756300279024,-480.0,0.00023835,2]
[381642059,1756300279034,-480.0,0.00023835,2]
[381642060,1756300279044,-1132.16,0.00023835,2]
[381642061,1756300279054,-480.0,0.00023835,2]
[381642062,1756300279064,-480.0,0.00023835,2]
[381642063,1756300279080,-668.2,0.00023835,2]
[381642064,1756300279090,-480.0,0.00023835,2]
[381642065,1756300279101,-546.1,0.00023835,2]
[381642066,1756300279112,-480.0,0.00023835,2]
[381642067,1756300279123,-592.01,0.00023835,2]
[381642068,1756300279134,-480.0,0.00023835,2]
[381642069,1756300279144,-480.0,0.00023835,2]
[381642070,1756300279155,-480.0,0.00023835,2]
[381642071,1756300279166,-480.0,0.00023835,2]
[381642072,1756300279176,-480.0,0.00023835,2]
[381642073,1756300279187,-480.0,0.00023835,2]
[381642074,1756300279198,-352.72304414,0.00023835,2]
[381642075,1756300279208,-480.0,0.00023835,2]
[381642076,1756300279219,-1077.95,0.00023835,2]
[381642077,1756300279229,-480.0,0.00023835,2]
[381642078,1756300279239,-480.0,0.00023835,2]
[381642079,1756300279250,-480.0,0.00023835,2]
[381642080,1756300279260,-480.0,0.00023835,2]
[381642081,1756300279272,-480.0,0.00023835,2]
[381642082,1756300279282,-480.0,0.00023835,2]
[381642083,1756300279293,-528.98,0.00023835,2]
[381642084,1756300279303,-480.0,0.00023835,2]
[381642085,1756300279313,-534.74,0.00023835,2]
[381642086,1756300279324,-557.3,0.00023835,2]
[381642087,1756300279335,-482.45,0.00023835,2]
[381642088,1756300279348,-480.0,0.00023835,2]
[381642089,1756300279357,-622.33,0.00023835,2]
[381642090,1756300279368,-480.0,0.00023835,2]
[381642091,1756300279378,-480.0,0.00023835,2]
[381642092,1756300279389,-522.2,0.00023835,2]
[381642093,1756300279399,-480.0,0.00023835,2]
[381642094,1756300279409,-480.0,0.00023835,2]
[381642095,1756300279420,-480.0,0.00023835,2]
[381642096,1756300279430,-682.64,0.00023835,2]
[381642097,1756300279440,-480.0,0.00023835,2]
[381642098,1756300279450,-480.0,0.00023835,2]
[381642099,1756300279460,-480.0,0.00023835,2]
[381642100,1756300279470,-480.0,0.00023835,2]
[381642101,1756300279480,-200.0,0.00023835,2]
[381642102,1756300279490,-480.0,0.00023835,2]
[381642103,1756300279501,-480.0,0.00023835,2]
[381642104,1756300279511,-480.0,0.00023835,2]
[381642105,1756300279522,-496.41,0.00023835,2]
[381642106,1756300279532,-480.0,0.00023835,2]
[381642107,1756300279543,-480.0,0.00023835,2]
[381642108,1756300279553,-961.54,0.00023835,2]
[381642109,1756300279563,-480.0,0.00023835,2]
[381642110,1756300279573,-541.92,0.00023835,2]
[381642111,1756300279583,-480.0,0.00023835,2]
[381642112,1756300279593,-489.46,0.00023835,2]
[381642113,1756300279603,-480.0,0.00023835,2]
[381642114,1756300279613,-480.0,0.00023835,2]
[381642115,1756300279623,-483.97,0.00023835,2]
[381642116,1756300279634,-572.57,0.00023835,2]
[381642117,1756300279644,-524.23,0.00023835,2]
[381642118,1756300279655,-480.0,0.00023835,2]
[381642119,1756300279666,-480.0,0.00023835,2]
[381642120,1756300279676,-787.06,0.00023835,2]
[381642121,1756300279689,-480.0,0.00023835,2]
[381642122,1756300279699,-518.41,0.00023835,2]
[381642123,1756300279709,-480.0,0.00023835,2]
[381642124,1756300279719,-480.0,0.00023835,2]
[381642125,1756300279730,-739.43,0.00023835,2]
[381642126,1756300279741,-480.0,0.00023835,2]
[381642127,1756300279751,-480.0,0.00023835,2]
[381642128,1756300279760,-480.0,0.00023835,2]
[381642129,1756300279771,-1255.57,0.00023835,2]
[381642130,1756300279781,-493.24,0.00023835,2]
[381642131,1756300279791,-598.58,0.00023835,2]
[381642132,1756300279802,-480.0,0.00023835,2]
[381642133,1756300279812,-641.42,0.00023835,2]
[381642134,1756300279822,-480.0,0.00023835,2]
[381642135,1756300279832,-728.84,0.00023835,2]
[381642136,1756300279842,-480.0,0.00023835,2]
[381642137,1756300279852,-480.0,0.00023835,2]
[381642138,1756300279862,-696.31,0.00023835,2]
[381642139,1756300279872,-480.0,0.00023835,2]
[381642140,1756300279881,-550.69,0.00023835,2]
[381642141,1756300279891,-480.0,0.00023835,2]
[381642142,1756300279901,-555.64,0.00023835,2]
[381642143,1756300279911,-480.0,0.00023835,2]
[381642144,1756300279922,-480.0,0.00023835,2]
[381642145,1756300279932,-480.0,0.00023835,2]
[381642146,1756300279942,-480.0,0.00023835,2]
[381642147,1756300279951,-480.0,0.00023835,2]
[381642148,1756300279961,-516.93,0.00023835,2]
[381642149,1756300279971,-480.0,0.00023835,2]
[381642150,1756300279982,-480.0,0.00023835,2]
[381642151,1756300279992,-480.0,0.00023835,2]
[381642152,1756300280002,-480.0,0.00023835,2]
[381642153,1756300280012,-500.0,0.00023835,2]
[381642154,1756300280021,-480.0,0.00023835,2]
[381642155,1756300280032,-480.0,0.00023835,2]
[381642156,1756300280043,-4811.31,0.00023835,2]
[381642157,1756300280054,-480.0,0.00023835,2]
[381642158,1756300280064,-480.0,0.00023835,2]
[381642159,1756300280074,-480.0,0.00023835,2]
[381642160,1756300280084,-480.0,0.00023835,2]
[381642161,1756300280094,-480.0,0.00023835,2]
[381642162,1756300280104,-892.28,0.00023835,2]
[381642163,1756300280113,-648.11,0.00023835,2]
[381642164,1756300280124,-480.0,0.00023835,2]
[381642165,1756300280135,-628.16,0.00023835,2]
[381642166,1756300280145,-480.0,0.00023835,2]
[381642167,1756300280155,-480.0,0.00023835,2]
[381642168,1756300280165,-496.15,0.00023835,2]
[381642169,1756300280175,-520.69,0.00023835,2]
[381642170,1756300280185,-700.56,0.00023835,2]
[381642171,1756300280195,-480.0,0.00023835,2]
[381642172,1756300280206,-531.78,0.00023835,2]
[381642173,1756300280216,-480.0,0.00023835,2]
[381642174,1756300280225,-480.0,0.00023835,2]
[381642175,1756300280235,-2061.31,0.00023835,2]
[381642176,1756300280245,-548.5,0.00023835,2]
[381642177,1756300280255,-598.63,0.00023835,2]
[381642178,1756300280265,-707.22,0.00023835,2]
[381642179,1756300280275,-592.64,0.00023835,2]
[381642180,1756300280284,-480.0,0.00023835,2]
[381642181,1756300280307,-480.0,0.00023835,2]
[381642182,1756300280317,-480.0,0.00023835,2]
[381642183,1756300280326,-501.49786935,0.00023835,2]
[381642184,1756300280338,-480.0,0.00023835,2]
[381642185,1756300280354,-480.0,0.00023835,2]
[381642186,1756300280365,-500.0,0.00023835,2]
[381642187,1756300280375,-499.75,0.00023835,2]
[381642188,1756300280386,-1499.56,0.00023835,2]
[381642189,1756300280396,-480.0,0.00023835,2]
[381642190,1756300280406,-536.82,0.00023835,2]
[381642191,1756300280417,-379.60934569,0.00023835,2]
[381642192,1756300280427,-480.0,0.00023835,2]
[381642193,1756300280438,-851.04,0.00023835,2]
[381642194,1756300280448,-480.0,0.00023835,2]
[381642195,1756300280458,-480.0,0.00023835,2]
[381642196,1756300280469,-480.0,0.00023835,2]
[381642197,1756300280479,-621.12,0.00023835,2]
[381642198,1756300280489,-480.0,0.00023835,2]
[381642199,1756300280498,-480.0,0.00023835,2]
[381642200,1756300280508,-480.0,0.00023835,2]
[381642201,1756300280518,-502.73,0.00023835,2]
[381642202,1756300280527,-540.63,0.00023835,2]
[381642203,1756300280539,-1154.23,0.00023835,2]
[381642204,1756300280550,-480.0,0.00023835,2]
[381642205,1756300280560,-480.0,0.00023835,2]
[381642206,1756300280570,-480.0,0.00023835,2]
[381642207,1756300280581,-480.0,0.00023835,2]
[381642208,1756300280592,-991.65,0.00023835,2]
[381642209,1756300280602,-2209.59,0.00023835,2]
[381642210,1756300280611,-480.0,0.00023835,2]
[381642211,1756300280622,-1168.45,0.00023835,2]
[381642212,1756300280805,-480.0,0.00023835,2]
[381642213,1756300280838,-480.0,0.00023835,2]
[381642214,1756300280848,-480.0,0.00023835,2]
[381642215,1756300280857,-480.0,0.00023835,2]
[381642216,1756300280867,-480.0,0.00023835,2]
[381642217,1756300280876,-480.0,0.00023835,2]
[381642218,1756300280886,-687.72,0.00023835,2]
[381642219,1756300280895,-480.0,0.00023835,2]
[381642220,1756300280905,-1375.52,0.00023835,2]
[381642221,1756300280914,-609.53,0.00023835,2]
[381642222,1756300280924,-480.0,0.00023835,2]
[381642223,1756300280934,-480.0,0.00023835,2]
[381642224,1756300280943,-480.0,0.00023835,2]
[381642225,1756300280953,-629.17,0.00023835,2]
[381642226,1756300280963,-480.0,0.00023835,2]
[381642227,1756300280972,-480.0,0.00023835,2]
[381642228,1756300280982,-879.01,0.00023835,2]
[381642229,1756300280993,-480.0,0.00023835,2]
[381642230,1756300281003,-553.05,0.00023835,2]
[381642231,1756300281012,-480.0,0.00023835,2]
[381642232,1756300281022,-511.27,0.00023835,2]
[381642233,1756300281032,-480.0,0.00023835,2]
[381642234,1756300281041,-480.0,0.00023835,2]
[381642235,1756300281051,-480.0,0.00023835,2]
[381642236,1756300281060,-480.0,0.00023835,2]
[381642237,1756300281070,-480.0,0.00023835,2]
[381642238,1756300281080,-480.0,0.00023835,2]
[381642239,1756300281090,-480.0,0.00023835,2]
[381642240,1756300281100,-1185.91,0.00023835,2]
[381642241,1756300281109,-1100.79,0.00023835,2]
[381642242,1756300281119,-480.0,0.00023835,2]
[381642243,1756300281128,-480.0,0.00023835,2]
[381642244,1756300281138,-480.0,0.00023835,2]
[381642245,1756300281148,-480.0,0.00023835,2]
[381642246,1756300281163,-480.0,0.00023835,2]
[381642247,1756300281173,-674.82,0.00023835,2]
[381642248,1756300281183,-480.0,0.00023835,2]
[381642249,1756300281193,-1582.66,0.00023835,2]
[381642250,1756300281203,-480.0,0.00023835,2]
[381642251,1756300281213,-3079.94,0.00023835,2]
[381642252,1756300281222,-1441.98,0.00023835,2]
[381642253,1756300281232,-480.0,0.00023835,2]
[381642254,1756300281242,-558.78,0.00023835,2]
[381642255,1756300281251,-480.0,0.00023835,2]
[381642256,1756300281263,-512.86,0.00023835,2]
[381642257,1756300281273,-535.83,0.00023835,2]
[381642258,1756300281284,-1247.25,0.00023835,2]
[381642259,1756300281293,-619.84,0.00023835,2]
[381642260,1756300281311,-1012.69,0.00023835,2]
[381642261,1756300281321,-480.0,0.00023835,2]
[381642262,1756300281331,-480.0,0.00023835,2]
[381642263,1756300281343,-1558.31,0.00023835,2]
[381642264,1756300281353,-575.32,0.00023835,2]
[381642265,1756300281363,-480.0,0.00023835,2]
[381642266,1756300281378,-480.0,0.00023835,2]
[381642267,1756300281389,-480.0,0.00023835,2]
[381642268,1756300281399,-480.0,0.00023835,2]
[381642269,1756300281409,-480.0,0.00023835,2]
[381642270,1756300281420,-1467.04,0.00023835,2]
[381642271,1756300281432,-480.0,0.00023835,2]
[381642272,1756300281441,-1873.26,0.00023835,2]
[381642273,1756300281451,-480.0,0.00023835,2]
[381642274,1756300281461,-480.0,0.00023835,2]
[381642275,1756300281471,-480.0,0.00023835,2]
[381642276,1756300281480,-480.0,0.00023835,2]
[381642277,1756300281490,-504.11,0.00023835,2]
[381642278,1756300281500,-480.0,0.00023835,2]
[381642279,1756300281510,-480.0,0.00023835,2]
[381642280,1756300281520,-508.08,0.00023835,2]
[381642281,1756300281529,-480.0,0.00023835,2]
[381642282,1756300281539,-2486.85,0.00023835,2]
[381642283,1756300281549,-480.0,0.00023835,2]
[381642284,1756300281558,-480.0,0.00023835,2]
[381642285,1756300281568,-480.0,0.00023835,2]
[381642286,1756300281577,-768.18,0.00023835,2]
[381642287,1756300281587,-7496.55,0.00023835,2]
[381642288,1756300281596,-820.29,0.00023835,2]
[381642289,1756300281606,-487.65,0.00023835,2]
[381642290,1756300281616,-480.0,0.00023835,2]
[381642291,1756300281626,-480.0,0.00023835,2]
[381642292,1756300281636,-480.0,0.00023835,2]
[381642293,1756300281646,-1126.02,0.00023835,2]
[381642294,1756300281656,-480.0,0.00023835,2]
[381642295,1756300281665,-1019.66,0.00023835,2]
[381642296,1756300281675,-480.0,0.00023835,2]
[381642297,1756300281685,-4097.76,0.00023835,2]
[381642298,1756300281695,-1538.8,0.00023835,2]
[381642299,1756300281704,-480.0,0.00023835,2]
[381642300,1756300281715,-553.39,0.00023835,2]
[381642301,1756300281725,-480.0,0.00023835,2]
[381642302,1756300281735,-563.16,0.00023835,2]
[381642303,1756300281744,-404.42461787,0.00023835,2]
[381642304,1756300281754,-866.73,0.00023835,2]
[381642305,1756300281765,-532.37,0.00023835,2]
[381642306,1756300281775,-480.0,0.00023835,2]
[381642307,1756300281785,-1089.92,0.00023835,2]
[381642308,1756300281795,-480.0,0.00023835,2]
[381642309,1756300281804,-480.0,0.00023835,2]
[381642310,1756300281814,-480.0,0.00023835,2]
[381642311,1756300281823,-619.83,0.00023835,2]
[381642312,1756300281833,-480.0,0.00023835,2]
[381642313,1756300281843,-480.0,0.00023835,2]
[381642314,1756300281853,-480.0,0.00023835,2]
[381642315,1756300281863,-1480.58,0.00023835,2]
[381642316,1756300281873,-480.0,0.00023835,2]
[381642317,1756300281883,-1080.29,0.00023835,2]
[381642318,1756300281893,-2783.48,0.00023835,2]
[381642319,1756300281903,-3788.9,0.00023835,2]
[381642320,1756300281912,-1045.46,0.00023835,2]
[381642321,1756300281922,-527.62,0.00023835,2]
[381642322,1756300281932,-849.03,0.00023835,2]
[381642323,1756300281942,-480.0,0.00023835,2]
[381642324,1756300281952,-480.0,0.00023835,2]
[381642325,1756300281962,-1135.21,0.00023835,2]
[381642326,1756300281972,-1489.59,0.00023835,2]
[381642327,1756300281983,-480.0,0.00023835,2]
[381642328,1756300281993,-1171.32,0.00023835,2]
[381642329,1756300282004,-506.58,0.00023835,2]
[381642330,1756300282014,-1373.52,0.00023835,2]
[381642331,1756300282024,-885.58,0.00023835,2]
[381642332,1756300282034,-521.66,0.00023835,2]
[381642333,1756300282044,-480.0,0.00023835,2]
[381642334,1756300282054,-994.97,0.00023835,2]
[381642335,1756300282063,-2291.1,0.00023835,2]
[381642336,1756300282073,-480.0,0.00023835,2]
[381642337,1756300282083,-836.96,0.00023835,2]
[381642338,1756300282094,-480.0,0.00023835,2]
[381642339,1756300282105,-4941.28,0.00023835,2]
[381642340,1756300282115,-805.85,0.00023835,2]
[381642341,1756300282125,-480.0,0.00023835,2]
[381642342,1756300282136,-480.0,0.00023835,2]
[381642343,1756300282147,-509.64,0.00023835,2]
[381642344,1756300282156,-584.58,0.00023835,2]
[381642345,1756300282166,-826.49,0.00023835,2]
[381642346,1756300282176,-480.0,0.00023835,2]
[381642347,1756300282188,-480.0,0.00023835,2]
[381642348,1756300282200,-480.0,0.00023835,2]
[381642349,1756300282211,-826.37,0.00023835,2]
[381642350,1756300282222,-642.66,0.00023835,2]
[381642351,1756300282232,-647.14,0.00023835,2]
[381642352,1756300282243,-495.41,0.00023835,2]
[381642353,1756300282253,-480.0,0.00023835,2]
[381642354,1756300282266,-480.0,0.00023835,2]
[381642355,1756300282280,-480.0,0.00023835,2]
[381642356,1756300282311,-713.97,0.00023835,2]
[381642357,1756300282321,-706.08,0.00023835,2]
[381642358,1756300282332,-684.55,0.00023835,2]
[381642359,1756300282344,-1220.94,0.00023835,2]
[381642360,1756300282354,-562.5,0.00023835,2]
[381642361,1756300282363,-480.0,0.00023835,2]
[381642362,1756300282374,-480.0,0.00023835,2]
[381642363,1756300282385,-480.0,0.00023835,2]
[381642364,1756300282395,-480.0,0.00023835,2]
[381642365,1756300282405,-160.0,0.00023847,2]
[381642366,1756300282417,-160.0,0.00023847,2]
[381642367,1756300282427,-160.0,0.00023847,2]
[381642368,1756300282438,-216.14835892,0.00023847,2]
[381642369,1756300282447,-417.15472785,0.00023847,2]
[381642370,1756300282457,-160.0,0.00023847,2]
[381642371,1756300282467,-160.0,0.00023847,2]
[381642372,1756300282477,-160.0,0.00023847,2]
[381642373,1756300282488,-425.44119842,0.00023847,2]
[381642374,1756300282498,-160.0,0.00023847,2]
[381642375,1756300282508,-232.59867797,0.00023847,2]
[381642376,1756300282518,-217.23771399,0.00023847,2]
[381642377,1756300282529,-529.56067766,0.00023847,2]
[381642378,1756300282539,-845.298898,0.00023847,2]
[381642379,1756300282549,-220.532,0.00023873,2]